Cogmind - Beta 14 @@@ ROGUE MODE // 2024.08.30 @ 11:52:55 Player: upsidedowneye Result: Destroyed by D-53 Grenadier with Mini Grenade Launcher Performance ------------- Evolutions (0) 0 Regions Visited (2) 400 Robots Destroyed (28) 140 Value Destroyed (489) 489 Prototype IDs (0) 0 Alien Tech Used (0) 0 Bonus (0) 0 TOTAL SCORE: 1029 Bonus ------- None Cogmind --------- Core Integrity 0/250 Matter 217/300 Energy 69/100 System Corruption 1% Temperature Cool (2) Movement Flying (37) Location -10/Mines Parts ------- > --- POWER (1) -------- (None) > --- PROPULSION (2) --- Flight Unit Flight Unit > --- UTILITY (2) ------ Small Storage Unit Signal Interpreter > --- WEAPON (2) ------- (None) > --- INVENTORY (8) ---- Light Nuclear Core Flight Unit Signal Interpreter Assault Rifle Light Assault Rifle Peak State ------------ > --- POWER ------------ Light Nuclear Core > --- PROPULSION ------- Wheel Wheel > --- UTILITY ---------- Small Storage Unit Improved Terrain Scanner > --- WEAPON ----------- EM Pulse Gun Light Assault Rifle > --- INVENTORY -------- Light Ion Engine Light Ion Engine Wheel Wheel Improved Heat Sink Medium Laser [Rating: 11] Favorites ----------- Power Light Ion Engine Engine Light Ion Engine Power Core Light Nuclear Core Propulsion Wheel Wheel Wheel Hover Unit Hover Unit Flight Unit Flight Unit Utility Small Storage Unit Device Improved Terrain Scanner Storage Small Storage Unit Processor Signal Interpreter Weapon Light Assault Rifle Energy Gun EM Pulse Gun Ballistic Gun Light Assault Rifle Launcher Rocket Launcher Build | -11 -10 -10 ------- Run | Yrd Mat Min Slots Evolved . | . . . Power . | . . . Propulsion . | . . . Utility . | . . . Weapon . | . . . Parts Attached 28 | 10 9 9 Power 6 | 2 2 2 Engine 5 | 2 1 2 Core 1 | . 1 . Reactor . | . . . Propulsion 11 | 4 4 3 Treads . | . . . Leg . | . . . Wheel 4 | 4 . . Hover 2 | . 2 . Flight 5 | . 2 3 Utility 4 | 2 2 . Device 1 | 1 . . Storage 2 | 1 1 . Processor 1 | . 1 . Hackware . | . . . Protection . | . . . Artifact . | . . . Weapon 7 | 2 1 4 Energy Gun 1 | 1 . . Energy Cannon . | . . . Ballistic Gun 4 | 1 1 2 Ballistic Cannon . | . . . Launcher 2 | . . 2 Special Weapon . | . . . Impact Weapon . | . . . Slashing Weapon . | . . . Piercing Weapon . | . . . Special Melee Weapon . | . . . Unidentified Prototypes . | . . . Parts Lost 7 | . 2 5 Power 1 | . . 1 Propulsion 4 | . 2 2 Utility . | . . . Weapon 2 | . . 2 Highest Loss Streak 4 | . 2 4 To Critical Strikes . | . . . Average Slot Usage (%) 84 | . 88 71 Engine 12 | . 12 12 Wheel 7 | . 10 . Hover 7 | . 10 . Flight 11 | . 4 28 Device 4 | . 5 . Storage 14 | . 14 14 Processor 6 | . 4 14 Energy Gun 6 | . 9 . Ballistic Gun 10 | . 14 1 Peak Build Rating 11 | 9 11 8 Average Rating 7 | 7 7 5 On Entrance 5 | . 9 6 Naked Turns . | . . . Heaviest Build 14 | 13 14 8 Greatest Support 32 | 32 20 8 Greatest Overweight (x) 1 | . 1 . Average Overweight (x) . | . . . Largest Inventory Capacity 8 | 8 8 8 Average Capacity 7 | 7 8 8 Most Carried 8 | 6 8 8 Average Carried 5 | 3 6 7 Final Capacity 8 | 8 8 8 Final Carried 8 | 4 8 5 Class Distribution -------------------- 55% | Scavenger-Mutant 44% | Mutant Dominant Class ---------------- Mutant | -10/Materials Mutant | -10/Mines Resources | -11 -10 -10 ----------- Run | Yrd Mat Min Matter Collected 524 | 332 162 30 Remotely . | . . . Salvage Created 1056 | 329 681 46 Parts 55 | 18 32 5 Haulers Intercepted . | . . . Recyclers Shooed 4 | . 4 . Parts Field Recycled . | . . . Retrieved Matter . | . . . Parts Self-Destructed . | . . . Prevented . | . . . Kills | -11 -10 -10 ------- Run | Yrd Mat Min Combat Hostiles Destroyed 14 | . 9 5 Guns 10 | . 9 1 AOE 4 | . . 4 Classes Destroyed 7 | 3 2 2 Worker 2 | 2 . . Tunneler 8 | 8 . . Recycler 4 | 1 3 . Watcher 2 | . 2 . Swarmer 3 | . . 3 Grunt 9 | . 9 . Assembled 2 | . . 2 Best Kill Streak 5 | 5 5 3 Combat Bots Only 3 | . 3 3 Max Kills in Single Turn 2 | 1 1 2 Gunslinging . | . . . Exploded 2 | . . 2 Melee . | . . . Uniques/NPCs Destroyed . | . . . Combat | -11 -10 -10 -------- Run | Yrd Mat Min Hostile Shots Fired 81 | . 44 37 Missed 24 | . 11 13 Damage Taken 832 | . 415 417 Core 254 | . 93 161 Absorbed by Shields . | . . . Core Remaining (%) 100 | 100 . . Volleys Fired 94 | 32 55 7 Largest 2 | 2 2 2 Hottest 60 | 60 60 40 Shots Fired 184 | 64 110 10 Gun 181 | 64 110 7 Cannon . | . . . Launcher 3 | . . 3 Special . | . . . Kinetic 103 | 32 64 7 Thermal . | . . . Explosive 3 | . . 3 Electromagnetic 78 | 32 46 . Robot Hit Streak 12 | 7 12 2 Robot Miss Streak 4 | 3 4 1 Penetration Max . | . . . Secondary Targets 2 | . 2 . Max Gunslinging Chain 1 | . 1 . Shots Hit Robots 111 | 36 70 5 Core Hits 67 | 16 29 22 Critical Kills 1 | . . 1 Critical Parts Destroyed . | . . . Critical Strikes 2 | . 1 1 Destroy 1 | . . 1 Corrupt 1 | . 1 . Melee Attacks . | . . . Impact . | . . . Slashing . | . . . Piercing . | . . . Sneak Attacks . | . . . Combat Hostiles . | . . . Follow-up Attacks . | . . . Damage Inflicted 1919 | 439 831 649 Guns 1267 | 408 803 56 Cannons . | . . . Explosions 652 | 31 28 593 Melee . | . . . Ramming . | . . . Kinetic 567 | 139 372 56 Thermal 59 | 31 28 . Explosive 593 | . . 593 Electromagnetic 700 | 269 431 . Impact . | . . . Slashing . | . . . Piercing . | . . . Highest Corruption 1 | . 1 1 Average Corruption 1 | . 1 1 Corruption Purged . | . . . Corruption Blocked . | . . . Overload Shots . | . . . Overflow Damage 4 | . . 4 Projectiles . | . . . Explosions 4 | . . 4 Melee . | . . . Knockbacks . | . . . Impact . | . . . Kinetic . | . . . Secondary . | . . . Self-Inflicted Damage 33 | . . 33 Shots 2 | . . 2 Rammed . | . . . Targets Rammed . | . . . Kicked . | . . . Crushed . | . . . Highest Temperature 112 | 80 112 18 Average Temperature 41 | 39 44 6 Received Heat Transfer 254 | . 234 20 Siege Activations . | . . . Robots Corrupted 1 | . 1 . Combat Hostiles . | . . . Parts Fried 1 | . 1 . Impact Corruptions . | . . . Robots Melted . | . . . Combat Hostiles . | . . . Parts Melted . | . . . Heat Transferred 100 | 50 50 . Parts Sabotaged . | . . . Parts Stolen . | . . . Parts Stripped . | . . . Power Chain Reactions 2 | 1 1 . Alert | -11 -10 -10 ------- Run | Yrd Mat Min Peak Influence 322 | 55 322 122 Initial 35 | . 35 10 Average 108 | 30 175 54 Maximum Alert Level 1 | . 1 . Low Security (%) 80 | 100 61 100 Level 1 19 | . 38 . Level 2 . | . . . Level 3 . | . . . Level 4 . | . . . Level 5 . | . . . High Security . | . . . Max Security . | . . . Squads Dispatched 3 | . 3 . Investigation 2 | . 2 . Extermination . | . . . Reinforcement 1 | . 1 . Assault . | . . . Garrison . | . . . Intercept . | . . . Searches Triggered . | . . . Construction Impeded . | . . . Haulers Reinforced . | . . . Active Scanning Responses . | . . . Cargo Convoy Interrupts . | . . . Stealth | -11 -10 -10 --------- Run | Yrd Mat Min Distress Signals 1 | . 1 . Communications Jammed . | . . . Distress Signals . | . . . Times Spotted 48 | . 22 26 Peak Tracking Total 20 | . 3 20 Tactical Retreats 2 | . . 2 Traps | -11 -10 -10 ------- Run | Yrd Mat Min Traps Triggered . | . . . Indirectly . | . . . Trap Hack Attempts . | . . . Triggered . | . . . Disarmed . | . . . Reprogrammed . | . . . Reused . | . . . Traps Extracted . | . . . Installed . | . . . Triggered . | . . . Machines | -11 -10 -10 ---------- Run | Yrd Mat Min Machines Disabled . | . . . Max in Single Turn . | . . . Machines Repaired . | . . . Machines Dismantled . | . . . Machines Sabotaged . | . . . Overloaded Fab Kills . | . . . Hacking | -11 -10 -10 --------- Run | Yrd Mat Min Machines Accessed 4 | . 4 . Terminals 4 | . 4 . Fabricators . | . . . Repair Stations . | . . . Recycling Units . | . . . Scanalyzers . | . . . Garrison Access . | . . . Total Hacks 14 | . 14 . Successful 5 | . 5 . Failed 9 | . 9 . Catastrophic 1 | . 1 . Database Lockouts . | . . . Manual . | . . . Terminals 14 | . 14 . Fabricators . | . . . Repair Stations . | . . . Recycling Units . | . . . Scanalyzers . | . . . Garrison Access . | . . . Terminal Hacks 5 | . 5 . Level Access Points 1 | . 1 . Branch Access Points 1 | . 1 . Unreport Threat 1 | . 1 . Locate Traps 1 | . 1 . Registered Components 1 | . 1 . Fabricator Hacks . | . . . Repair Station Hacks . | . . . Recycling Unit Hacks . | . . . Scanalyzer . | . . . Garrison Access Hacks . | . . . Unauthorized Hacks . | . . . Terminals . | . . . Fabricators . | . . . Repair Stations . | . . . Recycling Units . | . . . Scanalyzers . | . . . Garrison Access . | . . . Data Cores Recovered . | . . . Used . | . . . Hacking Detections 4 | . 4 . Full Trace Events 2 | . 2 . Feedback Events 1 | . 1 . Corruption 1 | . 1 . Feedback Blocked . | . . . Robot Schematics Acquired . | . . . Robots Built . | . . . Authchips . | . . . Time . | . . . Total Robot Build Rating . | . . . Part Schematics Acquired . | . . . Parts Built . | . . . Authchips . | . . . Time . | . . . Total Part Build Rating . | . . . Parts Repaired . | . . . Time . | . . . Parts Recycled . | . . . Recycled Matter . | . . . Retrieved Matter . | . . . Retrieved Components . | . . . Parts Scanalyzed . | . . . Part Schematics Acquired . | . . . Parts Damaged . | . . . Bothacking | -11 -10 -10 ------------ Run | Yrd Mat Min Used RIF Installer . | . . . Robots Hacked . | . . . Non-combat . | . . . Combat . | . . . Robot Hacks Applied . | . . . Relay Couplers Released . | . . . Fabnet Peak Effective % . | . . . Robots Rewired . | . . . Allies Hacked . | . . . Hacks Repelled . | . . . Allies | -11 -10 -10 -------- Run | Yrd Mat Min Total Allies . | . . . Largest Group . | . . . Highest-Rated Group . | . . . Highest-Rated Ally . | . . . Total Orders . | . . . Ally Attacks . | . . . Total Damage . | . . . Kills . | . . . Allies Corrupted . | . . . Allies Melted . | . . . Intel | -11 -10 -10 ------- Run | Yrd Mat Min Robot Analysis Total . | . . . Derelict Logs Recovered 1 | . . 1 Drone Launches . | . . . Drone Recoveries . | . . . Exploration | -11 -10 -10 ------------- Run | Yrd Mat Min Turns Passed 897 | 270 457 170 Spaces Moved 946 | 125 511 310 Core 19 | 19 . . Treads . | . . . Legs . | . . . Wheels 227 | 106 121 . Hover 169 | . 169 . Flight 531 | . 221 310 Fastest Speed 37 | 50 37 37 Average Speed 52 | 85 53 37 Slowest Speed 116 | 100 116 37 Overloaded Moves . | . . . Propulsion Burnouts . | . . . Robots Hopped 3 | . 2 1 Cave-ins Triggered . | . . . Exploration Rate (%) 40 | 4 59 58 Regions Visited 2 Branch Regions 1 Pre-discovered Areas . | . . . Known Exits Taken 1 | . 1 . Unknown Exits Taken 1 | 1 . . Scrap Searched 1 | . . 1 Spaces Dug . | . . . Terrain Destroyed 39 | 1 6 32 Melee . | . . . Projectile . | . . . AOE 39 | 1 6 32 Terrain Rammed . | . . . Walls Destroyed . | . . . Machines Disabled . | . . . Actions | -11 -10 -10 --------- Run | Yrd Mat Min Total 1185 | 231 594 360 Wait 59 | 46 . 13 Move 938 | 124 506 308 Hop 3 | . 2 1 Pick Up 38 | 15 12 11 Fast Attach . | . . . Attach 16 | 7 4 5 Detach 3 | . 2 1 Swap 12 | 3 5 4 Drop 22 | 4 8 10 Fire 94 | 32 55 7 Melee . | . . . Ram . | . . . Kick . | . . . Crush . | . . . Escape Stasis . | . . . Rewire . | . . . Trap . | . . . Miscellaneous . | . . . Route ------- -11/Scrapyard -10/Materials (discovered 4 exits: *Mat x3 / *Min) -10/Mines History --------- Turn | Location | Event 15 | -11/Scrapyard | Discovered new exit (range 16) 271 | -11/Scrapyard | Entered Materials 298 | -10/Materials | Discovered new exit (range 8) 308 | -10/Materials | Build established: Scavenger-Mutant 415 | -10/Materials | Discovered new exit (range 12) 649 | -10/Materials | Discovered new exit (range 13) 653 | -10/Materials | Identified exit to Materials 662 | -10/Materials | Identified exit to Mines 728 | -10/Materials | Entered Mines 743 | -10/Mines | Build established: Mutant 804 | -10/Mines | Received a Rocket Launcher from a helpful Derelict 871 | -10/Mines | Assembled infested the area 876 | -10/Mines | Assisted by a Guerilla fighting off Assembled 878 | -10/Mines | Core integrity fell below 50% 898 | -10/Mines | Destroyed by D-53 Grenadier with Mini Grenade Launcher Last Messages --------------- as-62095 destroyed. as-86878 destroyed. The unstable cave ceiling collapses. Rocket Launcher destroyed. as-15972 destroyed. as-45497 destroyed. Q4-OU3(h): "I'll hold them off! Go on ahead or try to find another way!" as-10624 suffers critical hit (Destroy). as-10624 destroyed. U-05 Engineer lays Concrete. C-30 ARC bursts open, deploying its payload. D-53 Grenadier unfolds itself. U-05 Engineer lays Concrete. Flight Unit destroyed. Pressure Siphon disabled. U-05 Engineer lays Concrete. Flight Unit destroyed. U-05 Engineer destroyed. U-05 Engineer lays Concrete. Map ----- +----------------------------------------------------+ | | | | | | | | | | | | | | | | | | | | | | | | | | | | | | | | | | | ?????????????????????????????????????????????????? | | ???????????????????????###???????????????????????? | | ????????????????????#### ??##???????????????????? | | ?????????????????#### ## ##??????????????????? | | ??????????####??## ##########??######## | | ?????????## ### """ u ##?# # | | ?????????# """ *%! d ### ### # | | ?????????# """ ! ### ## #???? | | ?????????# "" @ ##?## #???? | | ?????????# d% #??# ##??? | | ?????????????## #### r #??## #### | | ??????????????## ##???# #???# % % | | ???????????????## ##????### ##???# "#### | | ????????????????## #???????# ##????## ###??? | | ?????????????????## ##??????# #??????## ##????? | | ??????????????????# ##?????#!#???????####?????? | | ??????????????????## ##????# #????????????????? | | ????????####??????## ##???# #????????????????? | | ???????## ######## #???# #????????????????? | | ??????## #???# ????????????????? | | ??????# [ ##???###????????????????? | | ?###### #### ##???????????????????????? | | ?# ##??# ###????????????????????????? | | ?# ##??# ##??????????????????????????? | | ?# #### #??# ##???????????????????????????? | | ?#????## #?## ######???????????????????????? | | ???????## #??## #???????????????????????? | | ????????## ##???## #???????????????????????? | | ?????????####?????## ####???????????????????????? | | ??????????????????## ##?????????????????????????? | | ?????????????????## ##????????????????????????? | | ???????"" ######## #????????????????????????? | | ???????"" #????????????????????????? | +----------------------------------------------------+ Best States ------------- Heat Dissipation 25 Energy Generation 14 Energy Capacity 250 Matter Stores 300 Matter Capacity 300 Sight Range 16 Terrain Scan Range 16 Terrain Scan Density 10 Evasion (%) 62 Item Schematics ----------------- None Robot Schematics ------------------ None Fabricated ------------ Nothing Alien Tech Used ----------------- None Achievements -------------- Hunted Challenges ------------ None Game ------ Seed ThermoelectricHardenedMatter Manual? 0 Play Time 00:16:01 Cumulative 14.3 hours Start 2024.08.30 @ 11:39:09 End 2024.08.30 @ 11:52:55 Sessions 1 Manual Loads 0 Difficulty Rogue Special Mode None Game No. 23 Rogue 23 Adventurer 0 Explorer 0 Win Type - Total 0 Types 0/0/0/0/0/0/0/0/0 Lore% 4 Gallery% 17 Achievement% 16 Wizard Run 0 Options --------- Layout 1 ASCII 0 Keyboard 0 Movement Arrows Keybinds 0 Fullscreen 2 Font 32/SmallcapsGlow Map View 50x35 Zoom Use 0% Tactical HUD 0 Map Filters NONE Filters NONE Steam 1 RUN: 263e64f4-90df-4caf-8c69-056333364c94